[Event "Early-Titled-Tuesday-Blitz-January-16-2024"]
[Site "Chess.com"]
[Date "2024.01.16"]
[Round "2"]
[White "I_am_Javi"]
[Black "Maus7"]
[Result "0-1"]
[WhiteElo "2764"]
[BlackElo "2515"]
[TimeControl "180+1"]
[EndTime "8:19:37 PST"]
[Termination "Maus7 won on time"]

1. e4 {[%clk 0:03:00.9]} 1... e5 {[%clk 0:03:00.5]} 2. Nf3 {[%clk 0:03:00.5]}
2... Nc6 {[%clk 0:03:01]} 3. d4 {[%clk 0:02:58.9]} 3... exd4 {[%clk 0:03:01.2]}
4. Bc4 {[%clk 0:02:59.7]} 4... Bc5 {[%clk 0:02:59.8]} 5. O-O {[%clk 0:03:00]}
5... d6 {[%clk 0:02:58.9]} 6. c3 {[%clk 0:03:00]} 6... Bg4 {[%clk 0:02:52.2]} 7.
Qb3 {[%clk 0:02:19.5]} 7... Bxf3 {[%clk 0:02:48.4]} 8. gxf3 {[%clk 0:02:20]}
8... Ne5 {[%clk 0:02:37.7]} 9. Be2 {[%clk 0:02:20.4]} 9... d3 {[%clk 0:02:19]}
10. Bd1 {[%clk 0:02:19.4]} 10... Ne7 {[%clk 0:01:53.2]} 11. f4 {[%clk
0:02:10.9]} 11... Nd7 {[%clk 0:01:48]} 12. Qxb7 {[%clk 0:02:05.3]} 12... Rb8
{[%clk 0:01:45.5]} 13. Qa6 {[%clk 0:02:05.7]} 13... f5 {[%clk 0:01:33.7]} 14.
Qc4 {[%clk 0:01:01.9]} 14... fxe4 {[%clk 0:01:32.8]} 15. Qe6 {[%clk 0:00:22.4]}
15... Nf6 {[%clk 0:01:24.6]} 16. b4 {[%clk 0:00:16.1]} 16... Bb6 {[%clk
0:01:24.2]} 17. Ba4+ {[%clk 0:00:15.2]} 17... Kf8 {[%clk 0:01:21.7]} 18. Be3
{[%clk 0:00:10.4]} 18... Ned5 {[%clk 0:00:59.5]} 19. Bxb6 {[%clk 0:00:07.3]}
19... axb6 {[%clk 0:01:00.4]} 20. Qf5 {[%clk 0:00:03.2]} 20... Qc8 {[%clk
0:00:52.6]} 21. Qxc8+ {[%clk 0:00:02.9]} 21... Rxc8 {[%clk 0:00:53.5]} 22. Nd2
{[%clk 0:00:01.5]} 22... Nxc3 {[%clk 0:00:52.5]} 23. Bb3 {[%clk 0:00:01.4]}
23... d5 {[%clk 0:00:46.6]} 24. Kh1 {[%clk 0:00:01.6]} 24... d4 {[%clk
0:00:43.8]} 25. Rae1 {[%clk 0:00:01.4]} 25... Re8 {[%clk 0:00:43.7]} 26. f5
{[%clk 0:00:01.4]} 26... g6 {[%clk 0:00:34.1]} 27. Be6 {[%clk 0:00:01.8]} 27...
gxf5 {[%clk 0:00:25.7]} 28. Bxf5 {[%clk 0:00:02.7]} 28... Re5 {[%clk 0:00:26.1]}
29. Bh3 {[%clk 0:00:02]} 29... Rh5 {[%clk 0:00:19.6]} 30. Bg2 {[%clk 0:00:02.2]}
30... Rh4 {[%clk 0:00:20]} 31. f4 {[%clk 0:00:01.9]} 31... e3 {[%clk 0:00:18.4]}
32. Nf3 {[%clk 0:00:02.5]} 32... d2 {[%clk 0:00:17.6]} 33. Nxh4 {[%clk
0:00:02.7]} 33... dxe1=Q {[%clk 0:00:17.4]} 34. Rxe1 {[%clk 0:00:03.6]} 34...
Kf7 {[%clk 0:00:07.3]} 35. Nf5 {[%clk 0:00:04]} 35... c5 {[%clk 0:00:05.4]} 36.
bxc5 {[%clk 0:00:02.6]} 36... bxc5 {[%clk 0:00:06.3]} 37. Nd6+ {[%clk
0:00:02.8]} 37... Kg7 {[%clk 0:00:04.8]} 38. Nf5+ {[%clk 0:00:02.9]} 38... Kf7
{[%clk 0:00:04.7]} 39. Nd6+ {[%clk 0:00:03.3]} 39... Ke6 {[%clk 0:00:05]} 40.
Nc4 {[%clk 0:00:04]} 40... Kf5 {[%clk 0:00:04.2]} 41. a4 {[%clk 0:00:03.7]}
41... Nce4 {[%clk 0:00:03.9]} 42. a5 {[%clk 0:00:03.7]} 42... Ra8 {[%clk
0:00:03.7]} 43. Nd6+ {[%clk 0:00:02.1]} 43... Kxf4 {[%clk 0:00:04]} 44. Rf1+
{[%clk 0:00:02.3]} 44... Nf2+ {[%clk 0:00:03.5]} 45. Kg1 {[%clk 0:00:01.3]}
45... Rxa5 {[%clk 0:00:04.4]} 46. Nc4 {[%clk 0:00:01.3]} 46... Ra2 {[%clk
0:00:04.3]} 47. Nd6 {[%clk 0:00:02.2]} 47... d3 {[%clk 0:00:02.3]} 48. Nc4
{[%clk 0:00:02.4]} 48... Kg5 {[%clk 0:00:01.4]} 49. Nxe3 {[%clk 0:00:02.6]}
49... N2g4 {[%clk 0:00:01.2]} 50. Rf5+ {[%clk 0:00:02.5]} 50... Kg6 {[%clk
0:00:01.3]} 51. Rf3 {[%clk 0:00:02.8]} 51... Ra1+ {[%clk 0:00:01.8]} 52. Nf1
{[%clk 0:00:02.8]} 52... d2 {[%clk 0:00:02.3]} 53. Rd3 {[%clk 0:00:02.6]} 53...
d1=Q {[%clk 0:00:03.2]} 54. Rxd1 {[%clk 0:00:03]} 54... Rxd1 {[%clk 0:00:04.1]}
55. Bf3 {[%clk 0:00:03.7]} 55... Rc1 {[%clk 0:00:04.1]} 56. h3 {[%clk
0:00:04.1]} 56... Ne5 {[%clk 0:00:04.5]} 57. Be2 {[%clk 0:00:03.8]} 57... c4
{[%clk 0:00:05.3]} 58. Kf2 {[%clk 0:00:04.3]} 58... Kg5 {[%clk 0:00:05.8]} 59.
Nd2 {[%clk 0:00:03.7]} 59... c3 {[%clk 0:00:05.9]} 60. Nb3 {[%clk 0:00:04.4]}
60... Ne4+ {[%clk 0:00:06.1]} 61. Ke3 {[%clk 0:00:04.3]} 61... Rb1 {[%clk
0:00:06.2]} 62. Nd4 {[%clk 0:00:04.2]} 62... Nc5 {[%clk 0:00:05.6]} 63. Nc2
{[%clk 0:00:04.1]} 63... Rc1 {[%clk 0:00:05.7]} 64. Nd4 {[%clk 0:00:03.3]} 64...
h5 {[%clk 0:00:05.1]} 0-1

[Event "Early-Titled-Tuesday-Blitz-January-16-2024"]
[Site "Chess.com"]
[Date "2024.01.16"]
[Round "2"]
[White "nindjaxx8"]
[Black "Durarbayli"]
[Result "0-1"]
[WhiteElo "2565"]
[BlackElo "2837"]
[TimeControl "180+1"]
[EndTime "8:19:39 PST"]
[Termination "Durarbayli won by checkmate"]

1. d4 {[%clk 0:03:00.7]} 1... Nf6 {[%clk 0:02:59.3]} 2. c4 {[%clk 0:03:00.2]}
2... e6 {[%clk 0:02:59.9]} 3. Nc3 {[%clk 0:03:00.3]} 3... Bb4 {[%clk 0:02:59.6]}
4. Qc2 {[%clk 0:03:00.5]} 4... d5 {[%clk 0:02:58.9]} 5. cxd5 {[%clk 0:02:59.2]}
5... exd5 {[%clk 0:02:59.8]} 6. Bg5 {[%clk 0:02:59.1]} 6... c5 {[%clk
0:03:00.1]} 7. e3 {[%clk 0:02:58.8]} 7... cxd4 {[%clk 0:02:51.4]} 8. exd4 {[%clk
0:02:59.7]} 8... O-O {[%clk 0:02:50.8]} 9. Be2 {[%clk 0:02:56.5]} 9... Nc6
{[%clk 0:02:49.3]} 10. Nf3 {[%clk 0:02:53.6]} 10... Bg4 {[%clk 0:02:49.2]} 11.
Rd1 {[%clk 0:02:31.6]} 11... h6 {[%clk 0:02:49.2]} 12. Bh4 {[%clk 0:02:16.5]}
12... Bxf3 {[%clk 0:02:43.1]} 13. Bxf3 {[%clk 0:02:16.4]} 13... Re8+ {[%clk
0:02:43.7]} 14. Be2 {[%clk 0:02:16.3]} 14... g5 {[%clk 0:02:27.7]} 15. Bg3
{[%clk 0:02:15.8]} 15... Qb6 {[%clk 0:02:27.7]} 16. Qd3 {[%clk 0:01:58.4]} 16...
Bxc3+ {[%clk 0:02:13.9]} 17. bxc3 {[%clk 0:01:56.7]} 17... Qb2 {[%clk
0:02:14.5]} 18. f3 {[%clk 0:01:23.8]} 18... h5 {[%clk 0:00:50.5]} 19. h4 {[%clk
0:01:04.7]} 19... gxh4 {[%clk 0:00:50.4]} 20. Bxh4 {[%clk 0:00:58.3]} 20...
Rxe2+ {[%clk 0:00:49.7]} 21. Qxe2 {[%clk 0:00:47.6]} 21... Re8 {[%clk
0:00:49.1]} 22. Qxe8+ {[%clk 0:00:45.4]} 22... Nxe8 {[%clk 0:00:50]} 23. O-O
{[%clk 0:00:45.5]} 23... Qxc3 {[%clk 0:00:49.8]} 24. Rfe1 {[%clk 0:00:45.1]}
24... Ng7 {[%clk 0:00:50]} 25. Bf6 {[%clk 0:00:44.3]} 25... Ne6 {[%clk
0:00:46.8]} 26. Kh2 {[%clk 0:00:39.7]} 26... Kh7 {[%clk 0:00:46.5]} 27. Rb1
{[%clk 0:00:33.2]} 27... Kg6 {[%clk 0:00:44.3]} 28. Bh8 {[%clk 0:00:29.6]} 28...
Ncxd4 {[%clk 0:00:33.6]} 29. Be5 {[%clk 0:00:20.1]} 29... Qd2 {[%clk 0:00:27.3]}
30. Rbd1 {[%clk 0:00:17.9]} 30... Nxf3+ {[%clk 0:00:25.5]} 31. Kg3 {[%clk
0:00:17.2]} 31... Qxe1+ {[%clk 0:00:25.3]} 32. Rxe1 {[%clk 0:00:16.8]} 32...
Nxe1 {[%clk 0:00:26.2]} 33. Bd4 {[%clk 0:00:16.6]} 33... Nxd4 {[%clk 0:00:26.1]}
34. Kh2 {[%clk 0:00:17.5]} 34... Ne2 {[%clk 0:00:25.5]} 35. Kh3 {[%clk
0:00:18.4]} 35... d4 {[%clk 0:00:23.2]} 36. Kh2 {[%clk 0:00:19.3]} 36... d3
{[%clk 0:00:23.7]} 37. Kh3 {[%clk 0:00:20.2]} 37... d2 {[%clk 0:00:24.2]} 38.
Kh2 {[%clk 0:00:21.1]} 38... d1=N {[%clk 0:00:22.4]} 39. Kh3 {[%clk 0:00:21.8]}
39... a5 {[%clk 0:00:22.3]} 40. Kh2 {[%clk 0:00:22.7]} 40... b5 {[%clk
0:00:22.5]} 41. Kh3 {[%clk 0:00:23.6]} 41... a4 {[%clk 0:00:21.8]} 42. Kh2
{[%clk 0:00:24.5]} 42... a3 {[%clk 0:00:22.4]} 43. Kh3 {[%clk 0:00:25.4]} 43...
Ndc3 {[%clk 0:00:22.7]} 44. Kh2 {[%clk 0:00:26.3]} 44... Kg5 {[%clk 0:00:23]}
45. Kh3 {[%clk 0:00:27.2]} 45... Nxa2 {[%clk 0:00:23.4]} 46. Kh2 {[%clk
0:00:28.1]} 46... Nac1 {[%clk 0:00:23.5]} 47. Kh3 {[%clk 0:00:29]} 47... a2
{[%clk 0:00:24.1]} 48. Kh2 {[%clk 0:00:29.9]} 48... a1=N {[%clk 0:00:23.8]} 49.
Kh3 {[%clk 0:00:30.8]} 49... b4 {[%clk 0:00:23.3]} 50. Kh2 {[%clk 0:00:31.7]}
50... b3 {[%clk 0:00:23.9]} 51. Kh3 {[%clk 0:00:32.6]} 51... b2 {[%clk
0:00:24.4]} 52. Kh2 {[%clk 0:00:33.5]} 52... b1=N {[%clk 0:00:24.1]} 53. Kh3
{[%clk 0:00:34.4]} 53... f5 {[%clk 0:00:23.1]} 54. Kh2 {[%clk 0:00:35.3]} 54...
Kg4 {[%clk 0:00:22.7]} 55. Kh1 {[%clk 0:00:34.5]} 55... Nec3 {[%clk 0:00:22.8]}
56. Kh2 {[%clk 0:00:34.8]} 56... Kh4 {[%clk 0:00:21.6]} 57. Kh1 {[%clk
0:00:35.7]} 57... Kg3 {[%clk 0:00:21.9]} 58. Kg1 {[%clk 0:00:35.7]} 58... Nxg2
{[%clk 0:00:22.1]} 59. Kf1 {[%clk 0:00:36]} 59... Ne3+ {[%clk 0:00:21.7]} 60.
Ke1 {[%clk 0:00:36.1]} 60... Nec2+ {[%clk 0:00:21]} 61. Kf1 {[%clk 0:00:36.1]}
61... h4 {[%clk 0:00:21.2]} 62. Kg1 {[%clk 0:00:35.6]} 62... h3 {[%clk
0:00:21.6]} 63. Kf1 {[%clk 0:00:36.5]} 63... Kg4 {[%clk 0:00:18]} 64. Kg1 {[%clk
0:00:37.4]} 64... Nab3 {[%clk 0:00:17.3]} 65. Kf1 {[%clk 0:00:38.3]} 65... Nba3
{[%clk 0:00:17.9]} 66. Kg1 {[%clk 0:00:39.2]} 66... Nc4 {[%clk 0:00:18.7]} 67.
Kf1 {[%clk 0:00:39.8]} 67... Nc5 {[%clk 0:00:19.6]} 68. Kf2 {[%clk 0:00:39.9]}
68... N1b3 {[%clk 0:00:19.7]} 69. Kf1 {[%clk 0:00:39.6]} 69... Nb4 {[%clk
0:00:20.6]} 70. Kf2 {[%clk 0:00:40.3]} 70... Nba5 {[%clk 0:00:21.5]} 71. Kf1
{[%clk 0:00:41.2]} 71... Nbc6 {[%clk 0:00:22]} 72. Ke1 {[%clk 0:00:41.7]} 72...
Nab7 {[%clk 0:00:22.1]} 73. Kf1 {[%clk 0:00:41.4]} 73... Kg3 {[%clk 0:00:22.5]}
74. Ke1 {[%clk 0:00:42.3]} 74... h2 {[%clk 0:00:20.3]} 75. Kf1 {[%clk
0:00:43.2]} 75... h1=N {[%clk 0:00:17.5]} 76. Ke1 {[%clk 0:00:44.1]} 76... Nf2
{[%clk 0:00:17.2]} 77. Kf1 {[%clk 0:00:45]} 77... Nfe4 {[%clk 0:00:17.4]} 78.
Ke1 {[%clk 0:00:45.9]} 78... Nf6 {[%clk 0:00:17.9]} 79. Kf1 {[%clk 0:00:46.8]}
79... Ne8 {[%clk 0:00:18.6]} 80. Ke1 {[%clk 0:00:45.8]} 80... Nc7 {[%clk
0:00:19.5]} 81. Kf1 {[%clk 0:00:46.7]} 81... Nbd6 {[%clk 0:00:20.1]} 82. Ke1
{[%clk 0:00:47.6]} 82... Nc8 {[%clk 0:00:20.9]} 83. Kf1 {[%clk 0:00:48]} 83...
N3b5 {[%clk 0:00:21.3]} 84. Ke1 {[%clk 0:00:48.9]} 84... Nbd6 {[%clk 0:00:21.9]}
85. Kf1 {[%clk 0:00:49.8]} 85... f4 {[%clk 0:00:22.5]} 86. Ke1 {[%clk
0:00:50.7]} 86... Kg2 {[%clk 0:00:22.1]} 87. Kd1 {[%clk 0:00:51]} 87... f3
{[%clk 0:00:22.6]} 88. Kc1 {[%clk 0:00:51.9]} 88... f2 {[%clk 0:00:22.2]} 89.
Kb1 {[%clk 0:00:52.8]} 89... f1=N {[%clk 0:00:21.8]} 90. Ka1 {[%clk 0:00:53.7]}
90... Nfe3 {[%clk 0:00:21.4]} 91. Kb1 {[%clk 0:00:54.6]} 91... Nd3 {[%clk
0:00:19.1]} 92. Ka1 {[%clk 0:00:55.5]} 92... Ndb5 {[%clk 0:00:19.1]} 93. Kb1
{[%clk 0:00:56.4]} 93... Nbd4 {[%clk 0:00:18.7]} 94. Ka1 {[%clk 0:00:57.3]}
94... Ncb4 {[%clk 0:00:16.9]} 95. Kb1 {[%clk 0:00:58.2]} 95... Ncd5 {[%clk
0:00:17]} 96. Ka1 {[%clk 0:00:59.1]} 96... N8d6 {[%clk 0:00:17.6]} 97. Kb1
{[%clk 0:01:00]} 97... N6b5 {[%clk 0:00:18.4]} 98. Ka1 {[%clk 0:01:00.9]} 98...
Kf2 {[%clk 0:00:17.2]} 99. Kb1 {[%clk 0:01:01.8]} 99... Ke2 {[%clk 0:00:17]}
100. Ka1 {[%clk 0:01:02.7]} 100... Nec2+ {[%clk 0:00:13.8]} 101. Kb1 {[%clk
0:01:03.6]} 101... Ndc3# {[%clk 0:00:14]} 0-1

[Event "Early-Titled-Tuesday-Blitz-January-16-2024"]
[Site "Chess.com"]
[Date "2024.01.16"]
[Round "2"]
[White "GrigorGrigorov"]
[Black "RojonR"]
[Result "1-0"]
[WhiteElo "2940"]
[BlackElo "2609"]
[TimeControl "180+1"]
[EndTime "8:19:40 PST"]
[Termination "GrigorGrigorov won by resignation"]

1. Nf3 {[%clk 0:03:00.9]} 1... d5 {[%clk 0:02:58.5]} 2. g3 {[%clk 0:03:00]} 2...
Nc6 {[%clk 0:02:57.3]} 3. d4 {[%clk 0:02:59.4]} 3... Bf5 {[%clk 0:02:55.9]} 4.
Bg2 {[%clk 0:02:53.6]} 4... Nb4 {[%clk 0:02:53.9]} 5. Na3 {[%clk 0:02:52.8]}
5... e6 {[%clk 0:02:52.8]} 6. O-O {[%clk 0:02:51.1]} 6... h6 {[%clk 0:02:50.6]}
7. Ne5 {[%clk 0:02:38.1]} 7... Nf6 {[%clk 0:02:19.2]} 8. c3 {[%clk 0:02:34.5]}
8... Na6 {[%clk 0:02:07.6]} 9. c4 {[%clk 0:02:10.5]} 9... Bxa3 {[%clk 0:02:02]}
10. Qa4+ {[%clk 0:02:07.9]} 10... Nd7 {[%clk 0:01:44.4]} 11. Nxd7 {[%clk
0:01:57]} 11... Qxd7 {[%clk 0:01:41.1]} 12. Qxa3 {[%clk 0:01:57.3]} 12... c6
{[%clk 0:01:36.5]} 13. cxd5 {[%clk 0:01:52.9]} 13... exd5 {[%clk 0:01:35.4]} 14.
Bf4 {[%clk 0:01:49.3]} 14... Nc7 {[%clk 0:01:19.1]} 15. Qe3+ {[%clk 0:01:19.2]}
15... Ne6 {[%clk 0:01:10.2]} 16. h4 {[%clk 0:00:55.1]} 16... O-O {[%clk
0:01:07.5]} 17. Qd2 {[%clk 0:00:54.8]} 17... Nxf4 {[%clk 0:00:57.8]} 18. Qxf4
{[%clk 0:00:55]} 18... Rfe8 {[%clk 0:00:58.3]} 19. Rfe1 {[%clk 0:00:52.4]} 19...
Be4 {[%clk 0:00:53.6]} 20. Bf1 {[%clk 0:00:50.3]} 20... a5 {[%clk 0:00:48.1]}
21. Rac1 {[%clk 0:00:49.8]} 21... a4 {[%clk 0:00:46.6]} 22. a3 {[%clk
0:00:49.9]} 22... Qe7 {[%clk 0:00:25.6]} 23. Rc3 {[%clk 0:00:46.1]} 23... g5
{[%clk 0:00:24.9]} 24. Qg4 {[%clk 0:00:34.5]} 24... Qe6 {[%clk 0:00:15.6]} 25.
Qh5 {[%clk 0:00:22.8]} 25... Qg6 {[%clk 0:00:14.1]} 26. Qxg6+ {[%clk 0:00:20.4]}
26... Bxg6 {[%clk 0:00:15]} 27. hxg5 {[%clk 0:00:18.6]} 27... hxg5 {[%clk
0:00:15.9]} 28. e3 {[%clk 0:00:18.8]} 28... Kg7 {[%clk 0:00:14.1]} 29. Bg2
{[%clk 0:00:18.8]} 29... f5 {[%clk 0:00:12.9]} 30. Rec1 {[%clk 0:00:17.3]} 30...
Ra6 {[%clk 0:00:11.4]} 31. Rd1 {[%clk 0:00:15]} 31... Rb6 {[%clk 0:00:11.3]} 32.
Rd2 {[%clk 0:00:15.4]} 32... Ra8 {[%clk 0:00:11.5]} 33. Bf3 {[%clk 0:00:13.9]}
33... Kf6 {[%clk 0:00:10.6]} 34. Bd1 {[%clk 0:00:13.7]} 34... Bf7 {[%clk
0:00:08]} 35. f4 {[%clk 0:00:13.7]} 35... g4 {[%clk 0:00:06.4]} 36. Rh2 {[%clk
0:00:13.7]} 36... Kg7 {[%clk 0:00:04.7]} 37. Rcc2 {[%clk 0:00:12.3]} 37... Rb3
{[%clk 0:00:03.5]} 38. Rce2 {[%clk 0:00:12.3]} 38... Rd3 {[%clk 0:00:04]} 39.
Bc2 {[%clk 0:00:12.4]} 39... Rb3 {[%clk 0:00:02.7]} 40. Bxb3 {[%clk 0:00:12.3]}
40... axb3 {[%clk 0:00:03.3]} 41. Rh4 {[%clk 0:00:12.7]} 41... Re8 {[%clk
0:00:02.1]} 42. Kf2 {[%clk 0:00:12.3]} 42... Re6 {[%clk 0:00:00.8]} 43. Ke1
{[%clk 0:00:12.4]} 43... Bg6 {[%clk 0:00:01.1]} 44. Kd2 {[%clk 0:00:12.4]} 44...
b6 {[%clk 0:00:01.5]} 45. Reh2 {[%clk 0:00:12]} 45... Re8 {[%clk 0:00:01.3]} 46.
Rh1 {[%clk 0:00:10.9]} 46... c5 {[%clk 0:00:00.8]} 47. Rc1 {[%clk 0:00:10]}
47... c4 {[%clk 0:00:01.1]} 48. Re1 {[%clk 0:00:10.1]} 48... b5 {[%clk 0:00:02]}
49. Kc3 {[%clk 0:00:10.3]} 49... Ra8 {[%clk 0:00:02.8]} 50. Kb4 {[%clk
0:00:09.2]} 50... Rb8 {[%clk 0:00:03.7]} 51. Rh2 {[%clk 0:00:08.7]} 51... Kf6
{[%clk 0:00:03.6]} 52. Kc5 {[%clk 0:00:09]} 52... Kg7 {[%clk 0:00:04.2]} 53.
Kxd5 {[%clk 0:00:09.3]} 53... b4 {[%clk 0:00:04.1]} 54. axb4 {[%clk 0:00:08.6]}
54... c3 {[%clk 0:00:03.8]} 55. bxc3 {[%clk 0:00:08.2]} 55... Bf7+ {[%clk
0:00:04.7]} 56. Kc5 {[%clk 0:00:08]} 56... Rc8+ {[%clk 0:00:05]} 57. Kd6 {[%clk
0:00:08.4]} 57... Rxc3 {[%clk 0:00:05.8]} 58. b5 {[%clk 0:00:08.7]} 58... b2
{[%clk 0:00:05.6]} 59. Rxb2 {[%clk 0:00:07.8]} 1-0

[Event "Early-Titled-Tuesday-Blitz-January-16-2024"]
[Site "Chess.com"]
[Date "2024.01.16"]
[Round "2"]
[White "hongnhung1234"]
[Black "HamedWafa4"]
[Result "1/2-1/2"]
[WhiteElo "2582"]
[BlackElo "2856"]
[TimeControl "180+1"]
[EndTime "8:19:40 PST"]
[Termination "Game drawn by repetition"]

1. e4 {[%clk 0:03:00.9]} 1... e5 {[%clk 0:02:58]} 2. Nf3 {[%clk 0:03:00.7]} 2...
Nc6 {[%clk 0:02:58]} 3. d4 {[%clk 0:03:01.1]} 3... exd4 {[%clk 0:02:56.5]} 4.
Nxd4 {[%clk 0:03:02]} 4... Bc5 {[%clk 0:02:56.4]} 5. Be3 {[%clk 0:03:01.6]} 5...
Nxd4 {[%clk 0:02:54.1]} 6. Bxd4 {[%clk 0:03:02.5]} 6... Bxd4 {[%clk 0:02:54.9]}
7. Qxd4 {[%clk 0:03:03.2]} 7... Qf6 {[%clk 0:02:55.7]} 8. e5 {[%clk 0:03:03.6]}
8... Qb6 {[%clk 0:02:55.8]} 9. Qxb6 {[%clk 0:03:03]} 9... axb6 {[%clk
0:02:56.7]} 10. Nc3 {[%clk 0:03:02.1]} 10... f6 {[%clk 0:02:57]} 11. Nd5 {[%clk
0:02:57.1]} 11... Kd8 {[%clk 0:02:56.9]} 12. exf6 {[%clk 0:02:56.7]} 12... Nxf6
{[%clk 0:02:53.5]} 13. Nxf6 {[%clk 0:02:56.7]} 13... gxf6 {[%clk 0:02:54.2]} 14.
Bc4 {[%clk 0:02:54.3]} 14... c6 {[%clk 0:02:54.3]} 15. O-O-O {[%clk 0:02:50.2]}
15... d5 {[%clk 0:02:54]} 16. a3 {[%clk 0:02:49.9]} 16... b5 {[%clk 0:02:52.2]}
17. Bd3 {[%clk 0:02:37.5]} 17... Be6 {[%clk 0:02:49.3]} 18. Rhe1 {[%clk
0:02:35.5]} 18... Kd7 {[%clk 0:02:49.7]} 19. Re3 {[%clk 0:02:34.7]} 19... Rae8
{[%clk 0:02:11.4]} 20. Rde1 {[%clk 0:02:33]} 20... Kd6 {[%clk 0:02:11]} 21. Rf3
{[%clk 0:02:16.8]} 21... Ref8 {[%clk 0:01:33.2]} 22. Rfe3 {[%clk 0:02:12.9]}
22... Bd7 {[%clk 0:01:27.9]} 23. Re7 {[%clk 0:02:07.4]} 23... Re8 {[%clk
0:01:27.3]} 24. Rxe8 {[%clk 0:02:01]} 24... Bxe8 {[%clk 0:01:28.2]} 25. Bxh7
{[%clk 0:01:52.4]} 25... Bd7 {[%clk 0:01:27.8]} 26. Bd3 {[%clk 0:01:45.5]} 26...
Rxh2 {[%clk 0:01:26.5]} 27. Rg1 {[%clk 0:01:44]} 27... c5 {[%clk 0:01:22.6]} 28.
c3 {[%clk 0:01:24.2]} 28... Bc6 {[%clk 0:01:11.3]} 29. Kd2 {[%clk 0:01:18.8]}
29... d4 {[%clk 0:00:57.1]} 30. cxd4 {[%clk 0:01:17.2]} 30... cxd4 {[%clk
0:00:58]} 31. Bf1 {[%clk 0:01:01.5]} 31... f5 {[%clk 0:00:57.6]} 32. Kd3 {[%clk
0:00:57.4]} 32... Ke5 {[%clk 0:00:50]} 33. f4+ {[%clk 0:00:51.2]} 33... Kxf4
{[%clk 0:00:21.5]} 34. Kxd4 {[%clk 0:00:50.1]} 34... Kg3 {[%clk 0:00:21.9]} 35.
Bd3 {[%clk 0:00:44.9]} 35... f4 {[%clk 0:00:20.6]} 36. Be4 {[%clk 0:00:23.4]}
36... Rh6 {[%clk 0:00:08.2]} 37. Bxc6 {[%clk 0:00:17.9]} 37... Rxc6 {[%clk
0:00:08.6]} 38. Rf1 {[%clk 0:00:14.4]} 38... Rc2 {[%clk 0:00:08.2]} 39. Rf3+
{[%clk 0:00:13.9]} 39... Kg4 {[%clk 0:00:08.3]} 40. Rb3 {[%clk 0:00:13.2]} 40...
Rxg2 {[%clk 0:00:07.4]} 41. Rxb5 {[%clk 0:00:14]} 41... f3 {[%clk 0:00:07]} 42.
Rxb7 {[%clk 0:00:14.3]} 42... Rd2+ {[%clk 0:00:07.2]} 43. Ke3 {[%clk 0:00:13.6]}
43... Re2+ {[%clk 0:00:07.5]} 44. Kd3 {[%clk 0:00:13.4]} 44... Re5 {[%clk
0:00:07]} 45. Rf7 {[%clk 0:00:10.1]} 45... Ra5 {[%clk 0:00:02.7]} 46. Ke3 {[%clk
0:00:08]} 46... Re5+ {[%clk 0:00:02.9]} 47. Kf2 {[%clk 0:00:05.2]} 47... Re2+
{[%clk 0:00:02.4]} 48. Kf1 {[%clk 0:00:05.8]} 48... Rxb2 {[%clk 0:00:02.9]} 49.
a4 {[%clk 0:00:05.3]} 49... Ra2 {[%clk 0:00:02.6]} 50. Rg7+ {[%clk 0:00:05.5]}
50... Kf4 {[%clk 0:00:03.1]} 51. Rf7+ {[%clk 0:00:05.9]} 51... Ke3 {[%clk
0:00:03.7]} 52. Re7+ {[%clk 0:00:06.6]} 52... Kd3 {[%clk 0:00:04.3]} 53. Rf7
{[%clk 0:00:06.1]} 53... Ke3 {[%clk 0:00:03.4]} 54. Re7+ {[%clk 0:00:06.2]}
54... Kf4 {[%clk 0:00:03.9]} 55. Rf7+ {[%clk 0:00:06.6]} 55... Kg3 {[%clk
0:00:03.9]} 56. Rg7+ {[%clk 0:00:07]} 56... Kf4 {[%clk 0:00:03.3]} 57. Rf7+
{[%clk 0:00:07.3]} 1/2-1/2

[Event "Early-Titled-Tuesday-Blitz-January-16-2024"]
[Site "Chess.com"]
[Date "2024.01.16"]
[Round "2"]
[White "FM_VS99"]
[Black "bolwin"]
[Result "1-0"]
[WhiteElo "2518"]
[BlackElo "2262"]
[TimeControl "180+1"]
[EndTime "8:19:40 PST"]
[Termination "FM_VS99 won by checkmate"]

1. d4 {[%clk 0:03:00.9]} 1... Nf6 {[%clk 0:03:00.9]} 2. Nf3 {[%clk 0:03:00.9]}
2... c5 {[%clk 0:03:01.3]} 3. d5 {[%clk 0:03:00.4]} 3... e6 {[%clk 0:03:00.6]}
4. c4 {[%clk 0:03:00.3]} 4... exd5 {[%clk 0:03:00.8]} 5. cxd5 {[%clk 0:03:00.2]}
5... d6 {[%clk 0:03:01.7]} 6. Nc3 {[%clk 0:03:00.7]} 6... g6 {[%clk 0:03:02.5]}
7. g3 {[%clk 0:03:00.5]} 7... Bg7 {[%clk 0:03:03.4]} 8. Bg2 {[%clk 0:03:01.1]}
8... O-O {[%clk 0:03:04.2]} 9. O-O {[%clk 0:03:01.6]} 9... a6 {[%clk 0:03:05]}
10. a4 {[%clk 0:03:01]} 10... Re8 {[%clk 0:03:05.8]} 11. Re1 {[%clk 0:02:48.8]}
11... Nbd7 {[%clk 0:03:05.2]} 12. Bf4 {[%clk 0:02:42.6]} 12... Qc7 {[%clk
0:03:04.4]} 13. e4 {[%clk 0:02:34.2]} 13... Ng4 {[%clk 0:02:56.9]} 14. Qc2
{[%clk 0:02:31.4]} 14... Nge5 {[%clk 0:02:54.3]} 15. Nd2 {[%clk 0:02:24.1]}
15... Rb8 {[%clk 0:02:52.3]} 16. Bf1 {[%clk 0:02:00.2]} 16... b6 {[%clk
0:02:38.2]} 17. h3 {[%clk 0:01:56.8]} 17... c4 {[%clk 0:02:30.8]} 18. Be3 {[%clk
0:01:44.9]} 18... Nc5 {[%clk 0:02:15.8]} 19. Nxc4 {[%clk 0:01:39.4]} 19... Nf3+
{[%clk 0:02:04.3]} 20. Kg2 {[%clk 0:01:34.5]} 20... Nxe1+ {[%clk 0:02:05.2]} 21.
Rxe1 {[%clk 0:01:35.3]} 21... Bxc3 {[%clk 0:01:47.6]} 22. Qxc3 {[%clk 0:01:23]}
22... Nxe4 {[%clk 0:01:46.4]} 23. Qd4 {[%clk 0:01:11.5]} 23... b5 {[%clk
0:01:28.9]} 24. Bh6 {[%clk 0:01:06.5]} 24... f6 {[%clk 0:01:25.1]} 25. axb5
{[%clk 0:00:50.6]} 25... axb5 {[%clk 0:01:24.5]} 26. Nd2 {[%clk 0:00:35.9]}
26... Bxh3+ {[%clk 0:01:06.8]} 27. Kxh3 {[%clk 0:00:32]} 27... Ng5+ {[%clk
0:01:06.4]} 28. Bxg5 {[%clk 0:00:29.1]} 28... Rxe1 {[%clk 0:01:06.2]} 29. Be3
{[%clk 0:00:15.7]} 29... Qf7 {[%clk 0:00:47.2]} 30. Kg2 {[%clk 0:00:14.8]} 30...
Re8 {[%clk 0:00:25.8]} 31. Ne4 {[%clk 0:00:12.2]} 31... Rxe4 {[%clk 0:00:21.3]}
32. Qxe4 {[%clk 0:00:12.3]} 32... f5 {[%clk 0:00:20.6]} 33. Qd4 {[%clk
0:00:05.8]} 33... Qe7 {[%clk 0:00:16.1]} 34. Bxb5 {[%clk 0:00:04.7]} 34... Qe4+
{[%clk 0:00:15.3]} 35. Qxe4 {[%clk 0:00:04.9]} 35... fxe4 {[%clk 0:00:16.2]} 36.
Bc6 {[%clk 0:00:04.3]} 36... Rb1 {[%clk 0:00:15.6]} 37. Bd4 {[%clk 0:00:04.6]}
37... Kf7 {[%clk 0:00:15.4]} 38. g4 {[%clk 0:00:04.6]} 38... Ke7 {[%clk
0:00:13.3]} 39. Kg3 {[%clk 0:00:04.2]} 39... Rc1 {[%clk 0:00:12.9]} 40. Kf4
{[%clk 0:00:03.2]} 40... Rxc6 {[%clk 0:00:12.6]} 41. dxc6 {[%clk 0:00:03.2]}
41... d5 {[%clk 0:00:12.9]} 42. b4 {[%clk 0:00:03.4]} 42... Kd6 {[%clk
0:00:13.3]} 43. b5 {[%clk 0:00:03.9]} 43... Kc7 {[%clk 0:00:12.7]} 44. Be5+
{[%clk 0:00:04.3]} 44... Kb6 {[%clk 0:00:12.5]} 45. Ke3 {[%clk 0:00:05]} 45...
h5 {[%clk 0:00:11.1]} 46. gxh5 {[%clk 0:00:05.8]} 46... gxh5 {[%clk 0:00:12]}
47. Kd4 {[%clk 0:00:06.3]} 47... e3 {[%clk 0:00:12]} 48. fxe3 {[%clk 0:00:06.3]}
48... h4 {[%clk 0:00:12.9]} 49. Kxd5 {[%clk 0:00:06.6]} 49... h3 {[%clk
0:00:13.8]} 50. Bh2 {[%clk 0:00:07.2]} 50... Ka5 {[%clk 0:00:12.8]} 51. c7
{[%clk 0:00:07.4]} 51... Kb6 {[%clk 0:00:13.2]} 52. c8=Q {[%clk 0:00:07.8]}
52... Ka7 {[%clk 0:00:13.8]} 53. Qc7+ {[%clk 0:00:07.3]} 53... Ka8 {[%clk
0:00:14]} 54. Qb8# {[%clk 0:00:07.9]} 1-0